[Event "Titled Tuesday Blitz May 10 Early 2022"]
[White "Levine, David"]
[Black "Khabinets, Ivan"]
[WhiteFideId "2011611"]
[BlackFideId "14115980"]
[WhiteElo "2023"]
[BlackElo "2114"]
[Result "0-1"]
[Round "01"]
[TimeControl "180+1"]
[Date "2022.05.11"]
[WhiteClock "0:00:21"]
[BlackClock "0:01:16"]

1. d4 {[%clk 0:03:00]}  d5 {[%clk 0:02:59]} 2. c4 {[%clk 0:02:59]}  e6 {[%clk 0:02:52]} 3. g3 {[%clk 0:02:59]}  Nf6 {[%clk 0:02:50]} 4. Bg2 {[%clk 0:02:59]}  Be7 {[%clk 0:02:50]} 5. Nf3 {[%clk 0:02:58]}  O-O {[%clk 0:02:51]} 6. O-O {[%clk 0:02:58]}  dxc4 {[%clk 0:02:51]} 7. Qc2 {[%clk 0:02:57]}  b5 {[%clk 0:02:51]} 8. a4 {[%clk 0:02:54]}  Bb7 {[%clk 0:02:49]} 9. axb5 {[%clk 0:02:53]}  a6 {[%clk 0:02:50]} 10. Nc3 {[%clk 0:02:48]}  axb5 {[%clk 0:02:49]} 11. Rxa8 {[%clk 0:02:46]}  Bxa8 {[%clk 0:02:50]} 12. Nxb5 {[%clk 0:02:45]}  Bd5 {[%clk 0:02:46]} 13. Nc3 {[%clk 0:02:41]}  Bxf3 {[%clk 0:02:45]} 14. Bxf3 {[%clk 0:02:40]}  c5 {[%clk 0:02:46]} 15. dxc5 {[%clk 0:02:29]}  Bxc5 {[%clk 0:02:46]} 16. Bg5 {[%clk 0:02:16]}  Nbd7 {[%clk 0:02:45]} 17. Ne4 {[%clk 0:02:11]}  Be7 {[%clk 0:02:37]} 18. Qxc4 {[%clk 0:02:05]}  Ne5 {[%clk 0:02:27]} 19. Qc2 {[%clk 0:01:54]}  Nxf3+ {[%clk 0:02:21]} 20. exf3 {[%clk 0:01:54]}  Nd5 {[%clk 0:02:22]} 21. Bd2 {[%clk 0:01:27]}  Qb6 {[%clk 0:02:17]} 22. Rb1 {[%clk 0:01:23]}  Qb7 {[%clk 0:02:13]} 23. Qc4 {[%clk 0:01:18]}  Rc8 {[%clk 0:02:11]} 24. Qd3 {[%clk 0:01:18]}  Rd8 {[%clk 0:02:10]} 25. Qc4 {[%clk 0:01:17]}  h6 {[%clk 0:02:08]} 26. b4 {[%clk 0:01:13]}  Nb6 {[%clk 0:02:06]} 27. Qc2 {[%clk 0:01:11]}  Qd5 {[%clk 0:02:02]} 28. Be3 {[%clk 0:01:09]}  Nc4 {[%clk 0:02:01]} 29. Bc5 {[%clk 0:01:07]}  Bxc5 {[%clk 0:01:50]} 30. Nxc5 {[%clk 0:00:56]}  Na3 {[%clk 0:01:49]} 31. Qb3 {[%clk 0:00:42]}  Nxb1 {[%clk 0:01:46]} 32. Qxb1 {[%clk 0:00:42]}  Rb8 {[%clk 0:01:43]} 33. Qe1 {[%clk 0:00:36]}  Qc4 {[%clk 0:01:39]} 34. Qe4 {[%clk 0:00:23]}  Rxb4 {[%clk 0:01:26]} 35. Qa8+ {[%clk 0:00:22]}  Kh7 {[%clk 0:01:26]} 36. Nd7 {[%clk 0:00:22]}  Rb1+ {[%clk 0:01:15]} 37. Kg2 {[%clk 0:00:21]}  Qf1# {[%clk 0:01:16]} 0-1


[Site "https://www.chess.com"]

[Event "Titled Tuesday Blitz May 10 Early 2022"]
[White "Lomaia, Diana"]
[Black "Rohith Krishna S"]
[WhiteFideId "13612476"]
[BlackFideId "46617051"]
[WhiteElo "1744"]
[BlackElo "2117"]
[Result "0-1"]
[Round "01"]
[TimeControl "180+1"]
[Date "2022.05.11"]
[WhiteClock "0:00:41"]
[BlackClock "0:01:35"]

1. d4 {[%clk 0:03:00]}  c5 {[%clk 0:02:58]} 2. d5 {[%clk 0:03:00]}  Nf6 {[%clk 0:02:58]} 3. Nc3 {[%clk 0:02:57]}  g6 {[%clk 0:02:58]} 4. e4 {[%clk 0:02:57]}  d6 {[%clk 0:02:58]} 5. Nf3 {[%clk 0:02:58]}  Bg7 {[%clk 0:02:59]} 6. Bc4 {[%clk 0:02:58]}  O-O {[%clk 0:02:57]} 7. O-O {[%clk 0:02:59]}  a6 {[%clk 0:02:57]} 8. a4 {[%clk 0:02:59]}  Nbd7 {[%clk 0:02:57]} 9. Re1 {[%clk 0:02:57]}  Rb8 {[%clk 0:02:55]} 10. Bf4 {[%clk 0:02:54]}  Nh5 {[%clk 0:02:55]} 11. Bg3 {[%clk 0:02:51]}  Nxg3 {[%clk 0:02:52]} 12. hxg3 {[%clk 0:02:51]}  Qa5 {[%clk 0:02:52]} 13. Qd2 {[%clk 0:02:28]}  Qb4 {[%clk 0:02:33]} 14. Qd3 {[%clk 0:01:47]}  Qxb2 {[%clk 0:02:09]} 15. Ne2 {[%clk 0:01:45]}  b5 {[%clk 0:02:09]} 16. axb5 {[%clk 0:01:33]}  axb5 {[%clk 0:02:10]} 17. Ba2 {[%clk 0:01:23]}  c4 {[%clk 0:02:06]} 18. Qe3 {[%clk 0:01:17]}  Ra8 {[%clk 0:01:44]} 19. Reb1 {[%clk 0:01:09]}  Rxa2 {[%clk 0:01:44]} 20. Rxb2 {[%clk 0:01:07]}  Rxa1+ {[%clk 0:01:44]} 21. Kh2 {[%clk 0:01:04]}  Bxb2 {[%clk 0:01:45]} 22. Ned4 {[%clk 0:01:02]}  Ne5 {[%clk 0:01:40]} 23. Nxe5 {[%clk 0:01:00]}  dxe5 {[%clk 0:01:41]} 24. Nxb5 {[%clk 0:01:00]}  Bd7 {[%clk 0:01:42]} 25. Nc7 {[%clk 0:00:49]}  Bd4 {[%clk 0:01:40]} 26. Qe2 {[%clk 0:00:49]}  Rc8 {[%clk 0:01:39]} 27. Qxc4 {[%clk 0:00:41]}  Ra7 {[%clk 0:01:35]} 0-1


[Site "https://www.chess.com"]

[Event "Titled Tuesday Blitz May 10 Early 2022"]
[White "Maghsoodloo, Parham"]
[Black "Ferreira, Vitor Hugo Vieira"]
[WhiteFideId "12539929"]
[BlackFideId "2119765"]
[WhiteElo "2630"]
[BlackElo "2165"]
[Result "1-0"]
[Round "01"]
[TimeControl "180+1"]
[Date "2022.05.10"]
[WhiteClock "0:01:02"]
[BlackClock "0:00:07"]

1. e4 {[%clk 0:02:54]}  c5 {[%clk 0:02:59]} 2. Nf3 {[%clk 0:02:52]}  d6 {[%clk 0:02:59]} 3. d4 {[%clk 0:02:49]}  cxd4 {[%clk 0:03:00]} 4. Nxd4 {[%clk 0:02:50]}  Nf6 {[%clk 0:03:00]} 5. Nc3 {[%clk 0:02:41]}  a6 {[%clk 0:03:00]} 6. Bg5 {[%clk 0:02:40]}  e6 {[%clk 0:03:00]} 7. f4 {[%clk 0:02:40]}  Be7 {[%clk 0:03:00]} 8. Qf3 {[%clk 0:02:40]}  Qc7 {[%clk 0:03:00]} 9. O-O-O {[%clk 0:02:40]}  h6 {[%clk 0:03:00]} 10. Bh4 {[%clk 0:02:40]}  Nbd7 {[%clk 0:02:56]} 11. g4 {[%clk 0:02:38]}  g5 {[%clk 0:02:55]} 12. fxg5 {[%clk 0:02:36]}  Ne5 {[%clk 0:02:54]} 13. Qe2 {[%clk 0:02:33]}  Nfxg4 {[%clk 0:02:51]} 14. Nf5 {[%clk 0:02:21]}  exf5 {[%clk 0:02:29]} 15. Nd5 {[%clk 0:02:21]}  Qc5 {[%clk 0:02:29]} 16. Nxe7 {[%clk 0:02:19]}  Qe3+ {[%clk 0:02:29]} 17. Qxe3 {[%clk 0:02:17]}  Nxe3 {[%clk 0:02:29]} 18. Nxc8 {[%clk 0:02:08]}  Rxc8 {[%clk 0:02:25]} 19. Rxd6 {[%clk 0:02:08]}  hxg5 {[%clk 0:02:08]} 20. Bxg5 {[%clk 0:02:07]}  Nxf1 {[%clk 0:02:08]} 21. Rxf1 {[%clk 0:02:07]}  Rxh2 {[%clk 0:02:08]} 22. Rxf5 {[%clk 0:01:56]}  Rcxc2+ {[%clk 0:01:58]} 23. Kd1 {[%clk 0:01:54]}  Nc6 {[%clk 0:01:46]} 24. Re5+ {[%clk 0:01:32]}  Kf8 {[%clk 0:01:40]} 25. Bh6+ {[%clk 0:01:30]}  Kg8 {[%clk 0:00:52]} 26. Rg5+ {[%clk 0:01:30]}  Kh7 {[%clk 0:00:50]} 27. Rg7+ {[%clk 0:01:30]}  Kh8 {[%clk 0:00:50]} 28. Rg1 {[%clk 0:01:22]}  Rcg2 {[%clk 0:00:27]} 29. Rxg2 {[%clk 0:01:23]}  Rxg2 {[%clk 0:00:27]} 30. Bd2 {[%clk 0:01:22]}  Kg8 {[%clk 0:00:23]} 31. Rd7 {[%clk 0:01:20]}  Ne5 {[%clk 0:00:20]} 32. Rxb7 {[%clk 0:01:20]}  Nc4 {[%clk 0:00:20]} 33. Bc3 {[%clk 0:01:20]}  Ne3+ {[%clk 0:00:18]} 34. Kc1 {[%clk 0:01:16]}  Rc2+ {[%clk 0:00:17]} 35. Kb1 {[%clk 0:01:17]}  Rg2 {[%clk 0:00:14]} 36. a4 {[%clk 0:01:17]}  f5 {[%clk 0:00:12]} 37. Rb8+ {[%clk 0:01:09]}  Kf7 {[%clk 0:00:12]} 38. Rb7+ {[%clk 0:01:09]}  Ke6 {[%clk 0:00:12]} 39. Rb6+ {[%clk 0:01:09]}  Kd7 {[%clk 0:00:12]} 40. exf5 {[%clk 0:01:09]}  Nxf5 {[%clk 0:00:12]} 41. Rxa6 {[%clk 0:01:10]}  Kc7 {[%clk 0:00:11]} 42. Rf6 {[%clk 0:01:09]}  Ne3 {[%clk 0:00:10]} 43. a5 {[%clk 0:01:07]}  Rg1+ {[%clk 0:00:10]} 44. Ka2 {[%clk 0:01:07]}  Nc2 {[%clk 0:00:10]} 45. a6 {[%clk 0:01:06]}  Ra1+ {[%clk 0:00:09]} 46. Kb3 {[%clk 0:01:06]}  Ne3 {[%clk 0:00:09]} 47. Be5+ {[%clk 0:01:05]}  Kd7 {[%clk 0:00:08]} 48. a7 {[%clk 0:01:03]}  Ng4 {[%clk 0:00:08]} 49. Rf8 {[%clk 0:01:02]}  Nxe5 {[%clk 0:00:07]} 50. a8=Q {[%clk 0:01:02]} 1-0


[Site "https://www.chess.com"]

[Event "Titled Tuesday Blitz May 10 Early 2022"]
[White "Maksimenko, Viktor"]
[Black "Schut, Han"]
[WhiteFideId "13710478"]
[BlackFideId "1005561"]
[WhiteElo "2269"]
[BlackElo "2057"]
[Result "1-0"]
[Round "01"]
[TimeControl "180+1"]
[Date "2022.05.11"]
[WhiteClock "0:01:56"]
[BlackClock "0:00:20"]

1. d4 {[%clk 0:03:00]}  Nf6 {[%clk 0:02:53]} 2. c4 {[%clk 0:03:01]}  g6 {[%clk 0:02:52]} 3. Nc3 {[%clk 0:03:01]}  d5 {[%clk 0:02:53]} 4. cxd5 {[%clk 0:03:01]}  Nxd5 {[%clk 0:02:54]} 5. e4 {[%clk 0:03:01]}  Nxc3 {[%clk 0:02:54]} 6. bxc3 {[%clk 0:03:02]}  Bg7 {[%clk 0:02:54]} 7. Bc4 {[%clk 0:03:03]}  c5 {[%clk 0:02:55]} 8. Ne2 {[%clk 0:03:03]}  Nc6 {[%clk 0:02:55]} 9. Be3 {[%clk 0:03:03]}  O-O {[%clk 0:02:55]} 10. O-O {[%clk 0:03:03]}  Qc7 {[%clk 0:02:56]} 11. Rc1 {[%clk 0:02:45]}  Rd8 {[%clk 0:02:53]} 12. d5 {[%clk 0:02:42]}  Na5 {[%clk 0:02:46]} 13. Bd3 {[%clk 0:02:40]}  c4 {[%clk 0:02:43]} 14. Bb1 {[%clk 0:02:38]}  e6 {[%clk 0:02:44]} 15. f4 {[%clk 0:02:30]}  exd5 {[%clk 0:02:39]} 16. e5 {[%clk 0:02:31]}  Nc6 {[%clk 0:02:28]} 17. Nd4 {[%clk 0:02:28]}  Nxd4 {[%clk 0:02:25]} 18. Bxd4 {[%clk 0:02:29]}  b5 {[%clk 0:02:12]} 19. Qf3 {[%clk 0:02:27]}  a5 {[%clk 0:02:04]} 20. Rce1 {[%clk 0:02:26]}  Bf5 {[%clk 0:01:41]} 21. Bxf5 {[%clk 0:02:20]}  gxf5 {[%clk 0:01:42]} 22. g4 {[%clk 0:02:13]}  Qd7 {[%clk 0:01:30]} 23. Kh1 {[%clk 0:02:08]}  fxg4 {[%clk 0:01:28]} 24. Qg3 {[%clk 0:02:08]}  h5 {[%clk 0:01:28]} 25. f5 {[%clk 0:02:07]}  Kf8 {[%clk 0:00:55]} 26. Qh4 {[%clk 0:02:04]}  Re8 {[%clk 0:00:44]} 27. Qxh5 {[%clk 0:02:00]}  g3 {[%clk 0:00:20]} 28. f6 {[%clk 0:01:56]} 1-0


[Site "https://www.chess.com"]

[Event "Titled Tuesday Blitz May 10 Early 2022"]
[White "Manukian, Artak"]
[Black "Morefield, Jason"]
[WhiteFideId "13301373"]
[BlackFideId "30920825"]
[WhiteElo "2406"]
[BlackElo "2171"]
[Result "0-1"]
[Round "01"]
[TimeControl "180+1"]
[Date "2022.05.11"]
[WhiteClock "0:00:47"]
[BlackClock "0:00:03"]

1. e4 {[%clk 0:03:00]}  d6 {[%clk 0:02:58]} 2. d4 {[%clk 0:03:00]}  Nf6 {[%clk 0:02:59]} 3. Nc3 {[%clk 0:02:59]}  g6 {[%clk 0:02:59]} 4. g3 {[%clk 0:02:59]}  Bg7 {[%clk 0:02:57]} 5. Bg2 {[%clk 0:02:59]}  O-O {[%clk 0:02:57]} 6. Nge2 {[%clk 0:02:58]}  e5 {[%clk 0:02:57]} 7. O-O {[%clk 0:02:58]}  c6 {[%clk 0:02:58]} 8. h3 {[%clk 0:02:56]}  b5 {[%clk 0:02:57]} 9. dxe5 {[%clk 0:02:53]}  dxe5 {[%clk 0:02:56]} 10. Qxd8 {[%clk 0:02:50]}  Rxd8 {[%clk 0:02:57]} 11. a3 {[%clk 0:02:50]}  Nbd7 {[%clk 0:02:56]} 12. Bg5 {[%clk 0:02:48]}  h6 {[%clk 0:02:55]} 13. Bxf6 {[%clk 0:02:48]}  Bxf6 {[%clk 0:02:56]} 14. Rfd1 {[%clk 0:02:48]}  Bb7 {[%clk 0:02:55]} 15. Nc1 {[%clk 0:02:39]}  Nc5 {[%clk 0:02:54]} 16. Nb3 {[%clk 0:02:38]}  Nxb3 {[%clk 0:02:40]} 17. cxb3 {[%clk 0:02:39]}  a5 {[%clk 0:02:29]} 18. Rxd8+ {[%clk 0:02:30]}  Rxd8 {[%clk 0:02:27]} 19. Rd1 {[%clk 0:02:31]}  Rd4 {[%clk 0:02:22]} 20. Bf3 {[%clk 0:02:26]}  Bc8 {[%clk 0:02:17]} 21. h4 {[%clk 0:02:14]}  Be6 {[%clk 0:02:11]} 22. a4 {[%clk 0:02:01]}  Bxb3 {[%clk 0:01:42]} 23. Rxd4 {[%clk 0:01:59]}  exd4 {[%clk 0:01:42]} 24. Bd1 {[%clk 0:01:58]}  dxc3 {[%clk 0:01:12]} 25. Bxb3 {[%clk 0:01:57]}  cxb2 {[%clk 0:01:12]} 26. Ba2 {[%clk 0:01:56]}  bxa4 {[%clk 0:01:09]} 27. f4 {[%clk 0:01:55]}  Bd4+ {[%clk 0:01:04]} 28. Kf1 {[%clk 0:01:55]}  c5 {[%clk 0:01:03]} 29. Ke2 {[%clk 0:01:54]}  c4 {[%clk 0:00:48]} 30. g4 {[%clk 0:01:52]}  Kg7 {[%clk 0:00:42]} 31. h5 {[%clk 0:01:46]}  gxh5 {[%clk 0:00:35]} 32. gxh5 {[%clk 0:01:47]}  a3 {[%clk 0:00:31]} 33. Kd1 {[%clk 0:01:41]}  Be3 {[%clk 0:00:17]} 34. f5 {[%clk 0:01:39]}  Kf6 {[%clk 0:00:08]} 35. Kc2 {[%clk 0:01:39]}  c3 {[%clk 0:00:06]} 36. Kxc3 {[%clk 0:01:21]}  Ke5 {[%clk 0:00:06]} 37. Kb3 {[%clk 0:01:06]}  Kxe4 {[%clk 0:00:02]} 38. Kxa3 {[%clk 0:01:04]}  Bc1 {[%clk 0:00:02]} 39. Bb1+ {[%clk 0:00:59]}  Kf4 {[%clk 0:00:01]} 40. Ka4 {[%clk 0:00:54]}  Kg5 {[%clk 0:00:02]} 41. Kxa5 {[%clk 0:00:51]}  Kxh5 {[%clk 0:00:02]} 42. Kb4 {[%clk 0:00:49]}  Kg5 {[%clk 0:00:02]} 43. Kc3 {[%clk 0:00:49]}  h5 {[%clk 0:00:03]} 44. Ba2 {[%clk 0:00:47]}  f6 {[%clk 0:00:02]} 45. Kc2 {[%clk 0:00:47]}  Kxf5 {[%clk 0:00:02]} 46. Bf7 {[%clk 0:00:47]}  Kg4 {[%clk 0:00:03]} 47. Be6+ {[%clk 0:00:47]}  f5 {[%clk 0:00:03]} 0-1


[Site "https://www.chess.com"]

[Event "Titled Tuesday Blitz May 10 Early 2022"]
[White "Matveeva, Olga"]
[Black "Shyaamnikhil P"]
[WhiteFideId "24107018"]
[BlackFideId "5024218"]
[WhiteElo "2052"]
[BlackElo "2329"]
[Result "1/2-1/2"]
[Round "01"]
[TimeControl "180+1"]
[Date "2022.05.11"]
[WhiteClock "0:00:15"]
[BlackClock "0:00:14"]

1. d4 {[%clk 0:02:58]}  Nf6 {[%clk 0:02:57]} 2. c4 {[%clk 0:02:58]}  e6 {[%clk 0:02:55]} 3. g3 {[%clk 0:02:58]}  c5 {[%clk 0:02:54]} 4. d5 {[%clk 0:02:57]}  exd5 {[%clk 0:02:54]} 5. cxd5 {[%clk 0:02:58]}  d6 {[%clk 0:02:54]} 6. Nc3 {[%clk 0:02:58]}  g6 {[%clk 0:02:53]} 7. Bg2 {[%clk 0:02:59]}  Bg7 {[%clk 0:02:52]} 8. Nf3 {[%clk 0:02:59]}  O-O {[%clk 0:02:52]} 9. O-O {[%clk 0:03:00]}  Re8 {[%clk 0:02:51]} 10. Nd2 {[%clk 0:02:58]}  b6 {[%clk 0:02:45]} 11. a4 {[%clk 0:02:58]}  Ba6 {[%clk 0:02:40]} 12. Nb5 {[%clk 0:02:58]}  Bxb5 {[%clk 0:02:19]} 13. axb5 {[%clk 0:02:59]}  a5 {[%clk 0:02:18]} 14. Nc4 {[%clk 0:02:49]}  Ra7 {[%clk 0:02:10]} 15. Bf4 {[%clk 0:02:42]}  Rd7 {[%clk 0:02:09]} 16. Qc2 {[%clk 0:02:36]}  Nh5 {[%clk 0:02:09]} 17. Bc1 {[%clk 0:02:20]}  f5 {[%clk 0:02:08]} 18. e4 {[%clk 0:02:13]}  fxe4 {[%clk 0:01:57]} 19. Bh3 {[%clk 0:02:07]}  Nf6 {[%clk 0:01:40]} 20. Bg5 {[%clk 0:01:59]}  h6 {[%clk 0:01:31]} 21. Be6+ {[%clk 0:01:50]}  Kh7 {[%clk 0:01:15]} 22. Bxf6 {[%clk 0:01:48]}  Qxf6 {[%clk 0:01:15]} 23. Qxe4 {[%clk 0:01:42]}  Rde7 {[%clk 0:01:07]} 24. Nxd6 {[%clk 0:01:38]}  Rxe6 {[%clk 0:01:05]} 25. dxe6 {[%clk 0:01:18]}  Rxe6 {[%clk 0:01:05]} 26. Qb7 {[%clk 0:01:16]}  Rxd6 {[%clk 0:01:05]} 27. Qxb8 {[%clk 0:01:17]}  Rd2 {[%clk 0:01:03]} 28. Qb7 {[%clk 0:01:11]}  Rxb2 {[%clk 0:01:00]} 29. Rad1 {[%clk 0:01:09]}  a4 {[%clk 0:00:52]} 30. Rd7 {[%clk 0:01:08]}  a3 {[%clk 0:00:50]} 31. Qd5 {[%clk 0:00:48]}  a2 {[%clk 0:00:45]} 32. Rd8 {[%clk 0:00:47]}  Qxd8 {[%clk 0:00:43]} 33. Qxd8 {[%clk 0:00:46]}  Rb1 {[%clk 0:00:43]} 34. Qxb6 {[%clk 0:00:35]}  Rxf1+ {[%clk 0:00:42]} 35. Kxf1 {[%clk 0:00:36]}  a1=Q+ {[%clk 0:00:42]} 36. Kg2 {[%clk 0:00:36]}  c4 {[%clk 0:00:39]} 37. Qc7 {[%clk 0:00:34]}  c3 {[%clk 0:00:29]} 38. b6 {[%clk 0:00:34]}  Qb2 {[%clk 0:00:28]} 39. b7 {[%clk 0:00:33]}  c2 {[%clk 0:00:28]} 40. b8=Q {[%clk 0:00:30]}  Qxb8 {[%clk 0:00:27]} 41. Qxb8 {[%clk 0:00:30]}  c1=Q {[%clk 0:00:26]} 42. Qb7 {[%clk 0:00:30]}  Qb2 {[%clk 0:00:21]} 43. Qc6 {[%clk 0:00:29]}  Qf6 {[%clk 0:00:21]} 44. Qb7 {[%clk 0:00:29]}  h5 {[%clk 0:00:20]} 45. h4 {[%clk 0:00:28]}  Qf5 {[%clk 0:00:20]} 46. Qc6 {[%clk 0:00:27]}  Kh6 {[%clk 0:00:20]} 47. Qc1+ {[%clk 0:00:26]}  Kh7 {[%clk 0:00:20]} 48. Qc6 {[%clk 0:00:26]}  Qf7 {[%clk 0:00:19]} 49. Qe4 {[%clk 0:00:25]}  Bf6 {[%clk 0:00:18]} 50. Qc6 {[%clk 0:00:24]}  Kg7 {[%clk 0:00:19]} 51. Qe4 {[%clk 0:00:24]}  Qe7 {[%clk 0:00:19]} 52. Qd5 {[%clk 0:00:24]}  Qe5 {[%clk 0:00:18]} 53. Qb7+ {[%clk 0:00:23]}  Be7 {[%clk 0:00:18]} 54. Qc6 {[%clk 0:00:22]}  Qf6 {[%clk 0:00:18]} 55. Qb7 {[%clk 0:00:22]}  Qe5 {[%clk 0:00:18]} 56. Qc6 {[%clk 0:00:22]}  Bc5 {[%clk 0:00:18]} 57. Qb7+ {[%clk 0:00:22]}  Kh6 {[%clk 0:00:18]} 58. Qc6 {[%clk 0:00:22]}  Qf5 {[%clk 0:00:18]} 59. Qf3 {[%clk 0:00:19]}  Qxf3+ {[%clk 0:00:17]} 60. Kxf3 {[%clk 0:00:20]}  Kg7 {[%clk 0:00:17]} 61. Kg2 {[%clk 0:00:20]}  Kf6 {[%clk 0:00:17]} 62. f3 {[%clk 0:00:20]}  Kf5 {[%clk 0:00:17]} 63. Kh3 {[%clk 0:00:16]}  Bd6 {[%clk 0:00:16]} 64. g4+ {[%clk 0:00:16]}  hxg4+ {[%clk 0:00:16]} 65. fxg4+ {[%clk 0:00:17]}  Kf4 {[%clk 0:00:16]} 66. g5 {[%clk 0:00:16]}  Be5 {[%clk 0:00:14]} 67. h5 {[%clk 0:00:16]}  Kxg5 {[%clk 0:00:14]} 68. hxg6 {[%clk 0:00:15]}  Kxg6 {[%clk 0:00:14]} 1/2-1/2


[Site "https://www.chess.com"]

[Event "Titled Tuesday Blitz May 10 Early 2022"]
[White "Melian, Juan Sebastian"]
[Black "Bortnyk, Olexandr"]
[WhiteFideId "3706575"]
[BlackFideId "14120828"]
[WhiteElo "1851"]
[BlackElo "2723"]
[Result "0-1"]
[Round "01"]
[TimeControl "180+1"]
[Date "2022.05.10"]
[WhiteClock "0:00:08"]
[BlackClock "0:00:13"]

1. d4 {[%clk 0:02:57]}  d6 {[%clk 0:02:51]} 2. e4 {[%clk 0:02:55]}  Nf6 {[%clk 0:02:50]} 3. Nd2 {[%clk 0:02:53]}  e5 {[%clk 0:02:46]} 4. Ngf3 {[%clk 0:02:50]}  exd4 {[%clk 0:02:26]} 5. Nxd4 {[%clk 0:02:50]}  g6 {[%clk 0:02:25]} 6. Bc4 {[%clk 0:02:42]}  Bg7 {[%clk 0:02:25]} 7. O-O {[%clk 0:02:41]}  O-O {[%clk 0:02:22]} 8. N4f3 {[%clk 0:02:33]}  Nc6 {[%clk 0:02:20]} 9. c3 {[%clk 0:02:32]}  Bg4 {[%clk 0:02:13]} 10. Re1 {[%clk 0:02:26]}  d5 {[%clk 0:01:54]} 11. exd5 {[%clk 0:02:14]}  Nxd5 {[%clk 0:01:55]} 12. h3 {[%clk 0:02:12]}  Bf5 {[%clk 0:01:53]} 13. Ne4 {[%clk 0:02:04]}  Nb6 {[%clk 0:01:45]} 14. Bd3 {[%clk 0:02:04]}  h6 {[%clk 0:01:38]} 15. Qc2 {[%clk 0:01:59]}  Nd5 {[%clk 0:01:37]} 16. a3 {[%clk 0:01:54]}  Re8 {[%clk 0:01:34]} 17. Bd2 {[%clk 0:01:50]}  Re7 {[%clk 0:01:27]} 18. Nc5 {[%clk 0:01:50]}  Bc8 {[%clk 0:01:17]} 19. Rxe7 {[%clk 0:01:45]}  Qxe7 {[%clk 0:01:18]} 20. Ne4 {[%clk 0:01:35]}  Be6 {[%clk 0:01:14]} 21. Re1 {[%clk 0:01:35]}  Rd8 {[%clk 0:01:14]} 22. Ng3 {[%clk 0:01:24]}  a6 {[%clk 0:01:08]} 23. Bc1 {[%clk 0:01:18]}  Qd7 {[%clk 0:00:56]} 24. Be4 {[%clk 0:01:11]}  f5 {[%clk 0:00:44]} 25. Bd3 {[%clk 0:01:04]}  Bf7 {[%clk 0:00:44]} 26. Bc4 {[%clk 0:01:00]}  b5 {[%clk 0:00:43]} 27. Bb3 {[%clk 0:00:58]}  Nb6 {[%clk 0:00:42]} 28. Bxf7+ {[%clk 0:00:57]}  Qxf7 {[%clk 0:00:43]} 29. Bf4 {[%clk 0:00:57]}  Nd5 {[%clk 0:00:42]} 30. Be5 {[%clk 0:00:55]}  Re8 {[%clk 0:00:39]} 31. Bxg7 {[%clk 0:00:55]}  Rxe1+ {[%clk 0:00:40]} 32. Nxe1 {[%clk 0:00:56]}  Kxg7 {[%clk 0:00:41]} 33. Qd3 {[%clk 0:00:54]}  Qe6 {[%clk 0:00:40]} 34. Nf3 {[%clk 0:00:54]}  Nf4 {[%clk 0:00:40]} 35. Qd2 {[%clk 0:00:53]}  Qd6 {[%clk 0:00:40]} 36. Qe3 {[%clk 0:00:50]}  Nd3 {[%clk 0:00:34]} 37. Qd2 {[%clk 0:00:45]}  Nc5 {[%clk 0:00:30]} 38. Qe2 {[%clk 0:00:37]}  Qe6 {[%clk 0:00:26]} 39. Qd2 {[%clk 0:00:35]}  Qd6 {[%clk 0:00:23]} 40. Qe2 {[%clk 0:00:35]}  Kf7 {[%clk 0:00:24]} 41. c4 {[%clk 0:00:20]}  Nd3 {[%clk 0:00:20]} 42. cxb5 {[%clk 0:00:18]}  axb5 {[%clk 0:00:21]} 43. Qc2 {[%clk 0:00:16]}  Nde5 {[%clk 0:00:19]} 44. Nxe5+ {[%clk 0:00:16]}  Nxe5 {[%clk 0:00:19]} 45. Qc1 {[%clk 0:00:15]}  Kg7 {[%clk 0:00:17]} 46. Qc3 {[%clk 0:00:14]}  Kf7 {[%clk 0:00:17]} 47. Qc1 {[%clk 0:00:14]}  h5 {[%clk 0:00:17]} 48. Qc3 {[%clk 0:00:14]}  c5 {[%clk 0:00:17]} 49. h4 {[%clk 0:00:12]}  c4 {[%clk 0:00:16]} 50. Qe1 {[%clk 0:00:10]}  Nd3 {[%clk 0:00:15]} 51. Qd2 {[%clk 0:00:10]}  Qe5 {[%clk 0:00:15]} 52. Ne2 {[%clk 0:00:10]}  Qxb2 {[%clk 0:00:15]} 53. Qe3 {[%clk 0:00:10]}  Qa1+ {[%clk 0:00:15]} 54. Kh2 {[%clk 0:00:07]}  Qxa3 {[%clk 0:00:16]} 55. Qh6 {[%clk 0:00:07]}  Qf8 {[%clk 0:00:15]} 56. Qg5 {[%clk 0:00:06]}  Qe7 {[%clk 0:00:15]} 57. Qh6 {[%clk 0:00:07]}  Qxe2 {[%clk 0:00:15]} 58. Qh7+ {[%clk 0:00:06]}  Kf8 {[%clk 0:00:12]} 59. Qh8+ {[%clk 0:00:07]}  Ke7 {[%clk 0:00:12]} 60. Qg7+ {[%clk 0:00:07]}  Kd6 {[%clk 0:00:12]} 61. Qxg6+ {[%clk 0:00:08]}  Qe6 {[%clk 0:00:13]} 62. Qg7 {[%clk 0:00:08]}  Qe5+ {[%clk 0:00:13]} 0-1


[Site "https://www.chess.com"]

[Event "Titled Tuesday Blitz May 10 Early 2022"]
[White "Melikhov, Evgeny V."]
[Black "Kozak, Antoni"]
[WhiteFideId "4122046"]
[BlackFideId "21832030"]
[WhiteElo "1931"]
[BlackElo "2322"]
[Result "0-1"]
[Round "01"]
[TimeControl "180+1"]
[Date "2022.05.11"]
[WhiteClock "0:00:51"]
[BlackClock "0:00:52"]

1. d4 {[%clk 0:02:57]}  d5 {[%clk 0:02:54]} 2. c4 {[%clk 0:02:56]}  e6 {[%clk 0:02:53]} 3. Nc3 {[%clk 0:02:56]}  Nf6 {[%clk 0:02:51]} 4. cxd5 {[%clk 0:02:56]}  exd5 {[%clk 0:02:51]} 5. Bg5 {[%clk 0:02:57]}  c6 {[%clk 0:02:51]} 6. Qc2 {[%clk 0:02:56]}  Be7 {[%clk 0:02:42]} 7. e3 {[%clk 0:02:56]}  O-O {[%clk 0:02:41]} 8. Bd3 {[%clk 0:02:56]}  Nbd7 {[%clk 0:02:41]} 9. Nf3 {[%clk 0:02:55]}  Re8 {[%clk 0:02:40]} 10. O-O {[%clk 0:02:55]}  h6 {[%clk 0:02:40]} 11. Bh4 {[%clk 0:02:54]}  Ne4 {[%clk 0:02:40]} 12. Bxe4 {[%clk 0:02:54]}  Bxh4 {[%clk 0:02:34]} 13. Bh7+ {[%clk 0:02:53]}  Kh8 {[%clk 0:02:29]} 14. Bd3 {[%clk 0:02:53]}  Be7 {[%clk 0:02:20]} 15. Rab1 {[%clk 0:02:52]}  a5 {[%clk 0:02:17]} 16. a3 {[%clk 0:02:48]}  Bf8 {[%clk 0:02:05]} 17. b4 {[%clk 0:02:46]}  axb4 {[%clk 0:02:04]} 18. axb4 {[%clk 0:02:47]}  b5 {[%clk 0:02:04]} 19. Nxb5 {[%clk 0:01:59]}  cxb5 {[%clk 0:02:00]} 20. Qc6 {[%clk 0:01:58]}  Nb6 {[%clk 0:01:43]} 21. Ne5 {[%clk 0:01:53]}  Be6 {[%clk 0:01:42]} 22. Bxb5 {[%clk 0:01:44]}  Re7 {[%clk 0:01:26]} 23. Qc2 {[%clk 0:01:35]}  Rc7 {[%clk 0:01:22]} 24. Qe2 {[%clk 0:01:31]}  Bd6 {[%clk 0:01:16]} 25. Bc6 {[%clk 0:01:16]}  Rac8 {[%clk 0:01:07]} 26. b5 {[%clk 0:01:15]}  Bxe5 {[%clk 0:01:07]} 27. dxe5 {[%clk 0:01:15]}  Bd7 {[%clk 0:01:05]} 28. e4 {[%clk 0:01:08]}  Bxc6 {[%clk 0:01:01]} 29. bxc6 {[%clk 0:01:08]}  Rxc6 {[%clk 0:01:01]} 30. exd5 {[%clk 0:01:08]}  Qxd5 {[%clk 0:01:01]} 31. Rfd1 {[%clk 0:01:07]}  Qe6 {[%clk 0:00:59]} 32. h3 {[%clk 0:01:06]}  Kg8 {[%clk 0:00:59]} 33. f4 {[%clk 0:00:58]}  Nd5 {[%clk 0:00:55]} 34. Qa2 {[%clk 0:00:51]}  Nc3 {[%clk 0:00:52]} 0-1


[Site "https://www.chess.com"]